Workbook

Sheet Deuda
D1: SERVICIO NACIONAL DE SALUD
D2: DIRECCION DE FISCALIZACION Y CONTROL
D3: COMPROMISO DE DEUDAS AL 31 DE NOVIEMBRE 2025
A6: ESTABLECIMIENTO:___________________________________________________________________________ | C6: REGIONAL DE SALUD HIGUAMO
A8: NO | B8: NOMBRES PROVEEDOR | C8: DESCRIPCION (CONCEPTO) | D8: FUENTE FINANCIAMIENTOS (AF-VS) | E8: DEUDA AÑOS ANTERIORES 2022 | F8: MONTO AÑO 2023 | G8: MONTO AÑO 2024 | H8: MONTO AÑO 2025 AL 31 ENERO | I8: MONTO AÑO 2025 AL 31 DE MARZO | J8: MONTO AÑO 2025 AL 30 DE ABRIL | K8: MONTO AÑO 2025 AL 30 DE MAYO | L8: MONTO AÑO 2025 AL 30 DE JUNIO | M8: MONTO AL 31 DE JULIO | N8: MONTO AÑO 2025 AL 31 DE AGOSTO | O8: MONTO AÑO 2025 AL 30 DESEPTIEMBRE | P8: MONTO AÑO 2025 AL 30 DE OCTUBRE | Q8: MONTO AÑO 2025 AL 30 DE NOVIEMBRE | R8: TOTAL ADEUDA
B9: OVIEDO FARMA SRL | C9: COMPRA DE NEVERA | D9: VENTA DE SERVICIO | G9: 742,000.00 | R9: =G9 -> 742,000.00
B10: AYUNTAMINETO MUNICIPAL | C10: ASEO Y ALBITRIO | D10: VENTA DE SERVICIO | H10: 152,070.00 | R10: =H10 -> 152,070.00
B11: RAMIREZ PEÑA FOOD | C11: ALIMENTOS Y BEBIDAS | D11: VENTA DE SERVICIO | J11: 14,484.50 | R11: =J11 -> 14,484.50
B12: SANTOS PEREZ CEDEÑO | C12: ALIMENTOS Y BEBIDOS | D12: VENTA DE SERVICIOS | L12: 590.00 | R12: 0
B13: TOPOGRAFIA | C13: MANT DE EQUIPO | D13: VENTA DE SERVICIO | L13: 1,222,202.19 | R13: =L13 -> 1,222,202.19
B14: CENTRO FERRETERO DEL ESTS | C14: REMOZAMIENTO CPN YANIGUA | D14: VENTA DE SERVICIOS | L14: 40,774.61 | R14: =L14 -> 40,774.61
B15: COOAROM | C15: ARTICULOS FERRETEROS | D15: VENTA DE SERVICIOS | L15: 17,040.00 | R15: =L15 -> 17,040.00
B16: SANTOS PEREZ CEDEÑO | C16: ARTICULOS FERRETEROS | D16: VENTA DE SERVICIOS | M16: 590.00 | R16: =M16 -> 590.00
B17: SANTOS PEREZ CEDEÑO | C17: AGUA | D17: VENTA DE SERVICIOS | M17: 1,180.00 | R17: =M17 -> 1,180.00
B18: SANTOS PEREZ CEDEÑO | C18: ALIMENTOS Y BEBIDAS | D18: VENTA DE SERVICIOS | M18: 590.00 | R18: =M18 -> 590.00
B19: SANTOS PEREZ CEDEÑO | C19: MATERIAL DE LIMPIEZA | D19: VENTA DE SERVICIO | M19: 590.00 | R19: =M19 -> 590.00
B20: SANTOS PEREZ CEDEÑO | C20: ALIMENTOS Y BEBIDAS | D20: VENTA DE SERVICIO | M20: 590.00 | R20: =M20 -> 590.00
B21: SANTOS PEREZ CEDEÑO | C21: MANT DE EQUIPO DE TRANSPORTE | D21: VENTA DE SERVICIO | M21: 590.00 | R21: =M21 -> 590.00
B22: ENMNUEL CENTRO DE GOMAS | C22: ARTICULOS FERRETEROS | D22: VENTA DE SERVICIO | M22: 767.00 | R22: =M22 -> 767.00
B23: SERVIS FRENO DIAZ | C23: MANT DE EQUIPÒ DE TRANSPORTE | D23: VENTA DE SERVICIO | N23: 12,200.00 | R23: =N23 -> 12,200.00
B24: VASQUEZ REPUESTOS Y SERVICIOS | C24: MANT DE EQUIPO DE TRANSPORTE | D24: VENTA DE SERVICIO | N24: 15,040.00 | R24: =N24 -> 15,040.00
B25: JUAN DE LEON BERROA | C25: MANT DE EQUIPO DE TRANSPORTE | D25: VENTA DE SERVICIO | O25: 18,142.50 | R25: =O25 -> 18,142.50
B26: CENTRO FERRETERO EL POLI | C26: MANT DE EQUIPO DE TRANSPORTE | D26: VENTA DE SERVICIO | O26: 12,554.67 | R26: =O26 -> 12,554.67
B27: JUAN DE LEON BERROA | C27: MANT DE EQUIPO DE TRANSPORTE | D27: VENTA DE SERVICIO | O27: 39,471.00 | R27: =O27 -> 39,471.00
B28: MUSABELL SRL | C28: MANT DE EQUIPO DE TRANSPORTE | D28: VENTA DE SERVICIO | O28: 52,486.40 | R28: =O28 -> 52,486.40
B29: ALMACENES IBERIA SRL | C29: MATERIAL DE OFICINA | D29: VENTA DE SERVICIO | O29: 50,527.19 | R29: =O29 -> 50,527.19
B30: IMPRESORA YERALDIN | C30: MANT DE EQUIPO DE TRANSPORTE | D30: VENTA DE SERVICIO | O30: 40,828.00 | R30: =O30 -> 40,828.00
B31: RAMIREZ PEÑA | C31: MANT DE EQUIPO DE TRANSPORTE | D31: VENTA DE SERVICIO | O31: 12,680.00 | R31: =O31 -> 12,680.00
B32: VASQUEZ REPUESTOS Y SERVICIOS | C32: MANT DE EQUIPO DE TRANSPORTE | D32: VENTA DE SERVICIO | O32: 14,540.00 | R32: =O32 -> 14,540.00
B33: VROA SERVICIOS MULTIPLES | C33: MANT DE EQUIPO DE TRANSPORTE | D33: VENTA DE SERVICIO | O33: 280,000.00 | R33: =O33 -> 280,000.00
B34: MANANTIALES DEL ESTE | C34: MATERIAL DE OFICINA | D34: VENTA DE SERVICIO | P34: 4,560.00 | R34: =P34 -> 4,560.00
B35: FARMACONAL | C35: MANT DE EQUIPO DE TRANSPORTE | D35: VENTA DE SERVICIOS | P35: 5,152.47 | R35: =P35 -> 5,152.47
B36: LIBRERÍA Y PAPELERIA EL SEMBRADOR | C36: ARTICULOS FERRETEROS | D36: VENTA DE SERVICIOS | P36: 14,039.92 | R36: =P36 -> 14,039.92
B37: OLIVARES COMPUTADORAS | C37: MANT DE EQUIPO | D37: VENTA DE SERVICIOS | P37: 2,700.01 | R37: =P37 -> 2,700.01
B38: IMPRESORA YERALDIN | C38: ALIMENTOS Y BEBIDAS | D38: VENTA DE SERVICIOS | P38: 59,000.00 | R38: =P38 -> 59,000.00
B39: CENTRO FERRETERO | C39: MANT DE EQUIPO DE TRANSPORTE | D39: VENTA DE SERVICIOS | P39: 88,932.12 | R39: =P39 -> 88,932.12
B40: CENTRO FERRETERO | C40: MANT DE EQUIPO DE TRANSPORTE | D40: VENTA DE SERVICIOS | P40: 36,355.13 | R40: =P40 -> 36,355.13
B41: JUAN DE LEON BERROA | C41: ARTICULOS FERRETEROS | D41: VENTA DE SERVICIOS | P41: 12,036.00 | R41: =P41 -> 12,036.00
B42: JUAN DE LEON BERROA | C42: UNIDAD DE ODONTOLOGIA | D42: VENTA DE SERVICIOS | P42: 19,859.40 | R42: =P42 -> 19,859.40
B43: JUAN DE LEON BERROA | C43: MANT DE EQUIPO DE TRANSPORTE | D43: VENTA DE SERVICIOS | P43: 17,523.00 | R43: =P43 -> 17,523.00
B44: BIMI STOP SRL | C44: ALIMENTOS Y BEBIDAS | D44: VENTA DE SERVICIOS | P44: 5,457.50 | R44: =P44 -> 5,457.50
B45: R&L AUTO AIRE | C45: MANT DE EQUIPOS DE TRANSPORTE | D45: VENTA DE SERVICIOS | P45: 9,850.03 | R45: =P45 -> 9,850.03
B46: CENTRO FERRETERO | C46: MANT DE EQUIPO DE TRANSPORTE | D46: VENTA DE SERVICIOS | P46: 71,715.09 | R46: =P46 -> 71,715.09
B47: JARDIN ORIENTAL | C47: ARTICULOS FERRETEROS | D47: VENTA DE SERVICIOS | P47: 1,368.80 | R47: =P47 -> 1,368.80
B48: TIENDA MULTI BOX | C48: ARTICULOS FERRETEROS | D48: VENTAS DE SERVICIOS | P48: 15,239.70 | R48: =P48 -> 15,239.70
B49: AC SUMINISTROS SRL | C49: ARTICULOS FERRETEROS | D49: VENTA DE SERVICIOS | P49: 133,894.12 | R49: =P49 -> 133,894.12
B50: IMPRESORA YERALDIN | C50: BIMI STOP SRL | D50: VENTA DE SERVICIOS | P50: 19,411.00 | R50: =P50 -> 19,411.00
B51: JUAN DE LEON BERROA | C51: CENTRO FERRETERO DEL ESTE | D51: VENTA DE SERVICIOS | P51: 2,470.00 | R51: =P51 -> 2,470.00
B52: RAMIREZ PEÑA | C52: CAPELLAN DENTAL SRL | D52: VENTA DE SERVICIOS | P52: 20,060.00 | R52: =P52 -> 20,060.00
B53: CENTRO FERRETERO DEL ESTE | C53: JUAN DE LEON BERROA | D53: VENTA DE SERVICIOS | P53: 47,804.77 | R53: =P53 -> 47,804.77
B54: OMX MULTISERVICIOS | C54: CENTRO FERRETERO EL POLI | D54: VENTA DE SERVICIOS | P54: 196,510.56 | R54: =P54 -> 196,510.56
B55: OMX MULTISERVICIOS | C55: JUAN DE LEON BERROA | D55: VENTA DE SERVICIOS | P55: 551,816.46 | R55: =P55 -> 551,816.46
B56: SANTOS PEREZ CEDEÑO | C56: CENTRO FERRETERO DEL ESTE | D56: VENTA DE SERVICIOS | P56: 4,838.00 | R56: =P56 -> 4,838.00
B57: SANTOS PEREZ CEDEÑO | C57: MUSABELL SRL | D57: VENTA DE SERVICIOS | P57: 5,428.00 | R57: =P57 -> 5,428.00
B58: VASQUEZ REPUESTOS Y SERVICIOS | C58: MULTI BOX SRL | D58: VENTA DE SERVICIOS | P58: 5,080.00 | R58: =P58 -> 5,080.00
B59: JUAN DE LEON BERROA | C59: IMPRESORA YERALDIN | D59: VENTA DE SERVICIOS | P59: 21,063.00 | R59: =P59 -> 21,063.00
B60: JUAN DE LEON BERROA | C60: JUAN DE LEON BERROA | D60: VENTA DE SERVICIOS | P60: 21,240.00 | R60: =P60 -> 21,240.00
B61: SANTOS PEREZ CEDEÑO | D61: VENTA DE SERVICIOS | P61: 4,838.00 | R61: =P61 -> 4,838.00
B62: SANTOS PEREZ CEDEÑO | C62: MARCOS ANTONIO MERCEDES | D62: VENTA DE SERVICIOS | P62: 5,428.00 | R62: =P62 -> 5,428.00
B63: MANANTIALES DEL ESTE | C63: ALMACENES IBERIA SRL | D63: VENTA DE SERVICIOS | Q63: 4,260.00 | R63: 4,260.00
B64: JARDIN ORIENTAL | C64: ALMACENES IBERIA SRL | D64: VENTA DE SERVICIOS | Q64: 1,180.00 | R64: 1,180.00
B65: DINAMED SRL | C65: IMPRESORA YERALDIN | D65: VENTA DE SERVICIOS | Q65: 109,411.24 | R65: 109,411.24
B66: L RAMON AUTO AIRES | C66: AUTO REPUESTO PADILLA | D66: VENTA DE SERVICIOS | Q66: 7,800.07 | R66: 7,800.07
B67: RAMIREZ PEÑA | C67: VASQUEZ REPUESTOS Y SERVICIOS | D67: VENTA DE SERVICIOS | Q67: 15,045.00 | R67: 15,045.00
B68: RALANSA EIRL | C68: ALMANZAR ESTEVEZ | D68: VENTA DE SERVICIOS | Q68: 279,600.00 | R68: 279,600.00
B69: DISTRIBUIDORA UNIVERSAL SA | C69: ALMANZAR ESTEVEZ | D69: VENTA DE SERVICIOS | Q69: 2,116.92 | R69: 2,116.92
B70: IMPRESORA YERALDIN | C70: VASQUEZ REPUESTOS Y SERVICIOS | D70: VENTA DE SERVICIOS | Q70: 7,670.00 | R70: 7,670.00
B71: DISTRIBUIDORA UNIVERSAL SA | C71: BIONUCLEAR | D71: VENTA DE SERVICIOS | Q71: 30,046.33 | R71: 30,046.33
B72: ALMACENES IBERIA SRL | C72: PAPELERIA CACTUS | D72: VENTA DE SERVICIOS | Q72: 7,663.79 | R72: 7,663.79
B73: VASQUEZ REPUESTOS Y SERVICIOS | C73: CENTRO FERRETERO DEL ESTE | D73: VENTA DE SERVICIOS | Q73: 39,695.00 | R73: 39,695.00
B74: JORSA MULTISERVICES | C74: CENTRO FERRETERO DEL ESTE | D74: VENTA DE SERVICIOS | Q74: 1,075,688.00 | R74: 1,075,688.00
B75: ALMACENES IBERIA SRL | C75: CENTRO FERRETERO DEL ESTE | D75: VENTA DE SERVICIOS | Q75: 3,300.00 | R75: 3,300.00
B76: CENTRO FERRETERO DEL ESTE | C76: VROA SERVICIOS MULTIPLES | D76: VENTA DE SERVICIOS | Q76: 1,979.99 | R76: 1,979.99
B77: CENTRO FERRETERO DEL ESTE | C77: BIONUCLEAR | D77: VENTA DE SERVICIOS | Q77: 22,564.96 | R77: 22,564.96
B78: LEIDY CONCEPCION | C78: MULTI BOX SRL | D78: VENTA DE SERVICIOS | Q78: 25,075.00 | R78: 25,075.00
B79: CENTRO FERRETERO DEL ESTE | C79: RALANSA EIRL | D79: VENTA DE SERVICIOS | Q79: 79,656.12 | R79: 79,656.12
B80: CENTRO FERRETERO DEL ESTE | C80: RALANSA EIRL | D80: VENTA DE SERVICIOS | Q80: 40,391.52 | R80: 40,391.52
B81: CENTRO FERRETERO DEL ESTE | C81: HOME HILARIO | D81: VENTA DE SERVICIOS | Q81: 10,715.00 | R81: 10,715.00
B82: IMPRESORA YERALDIN | C82: FARMACONAL | D82: VENTA DE SERVICIOS | Q82: 7,552.00 | R82: 7,552.00
B83: DISTRIBUIDORA UNIVERSAL SA | C83: DINAMED SRL | D83: VENTA DE SERVICIOS | Q83: 1,298.00 | R83: 1,298.00
B84: DISTRIBUIDORA UNIVERSAL SA | C84: LIBRERÍA Y PAPELERIA EL SEMBRADOR | D84: VENTA DE SERVICIOS | Q84: 1,298.00 | R84: 1,298.00
B85: DISTRIBUIDORA UNIVERSAL SA | C85: OLIVARES COMPUTADORAS | D85: VENTA DE SERVICIOS | Q85: 1,872.66 | R85: 1,872.66
B86: VASQUEZ REPUESTOS Y SERVICIOS | C86: CR CASTILLO | D86: VENTA DE SERVICIOS | Q86: 56,155.00 | R86: 56,155.00
B87: VASQUEZ REPUESTOS Y SERVICIOS | C87: PRODUCTOS JOEL | D87: VENTA DE SERVICIOS | Q87: 13,730.00 | R87: 13,730.00
B88: CENTRO FERRETERO DEL ESTE | C88: IMPRESORA YERALDIN | D88: VENTA DE SERVICIOS | Q88: 34,079.97 | R88: 34,079.97
B89: CENTRO FERRETREO DEL ESTE | C89: CENTRO FERRETERO | D89: VENTA DE SERVICIOS | Q89: 26,865.45 | R89: 26,865.45
B90: RAUL SANCHEZ | C90: BIO-NOVA SRL | D90: VENTA DE SERVICIOS | Q90: 10,979.90 | R90: 10,979.90
B91: DISTRIBUIDORA UNIVERSAL SA | C91: CENTRO FERRETERO | D91: VENTA DE SERVICIOS | Q91: 1,298.00 | R91: 1,298.00
B92: DISTRIBUIDORA UNIVERSAL SA | C92: JUAN DE LEON BERROA | D92: VENTA DE SERVICIOS | Q92: 4,585.60 | R92: 4,585.60
B93: DISTRIBUIDORA UNIVERSAL SA | C93: JUAN DE LEON BERROA | D93: VENTA DE SERVICIOS | Q93: 1,298.00 | R93: 1,298.00
B94: DISTRIBUIDORA UNIVERSAL SA | C94: JUAN DE LEON BERROA | D94: VENTA DE SERVICIOS | Q94: 1,298.00 | R94: 1,298.00
B95: CENTRO FERRETERO DEL ESTE | C95: JARDIN ORIENTAL | D95: VENTA DE SERVICIOS | Q95: 27,364.02 | R95: 27,364.02
B96: RALANSA EIRL | C96: VASQUEZ REPUESTOS Y SERVICIOS | D96: VENTA DE SERVICIOS | Q96: 9,344.00 | R96: 9,344.00
B97: CARLOS ROBLES | C97: JARDIN ORIENTAL | D97: VENTA DE SERVICIOS | Q97: 30,000.00 | R97: 30,000.00
B98: LUIS EMILIO | C98: CENTRO FERRETERO | D98: VENTA DE SERVICIOS | Q98: 8,000.00 | R98: 8,000.00
R101: =M101 -> 0
B102: TOTAL GENERAL | F102: =SUM(F10:F10) -> 0 | G102: =SUM(G9) -> 742,000.00 | H102: =SUM(H9:H10) -> 152,070.00 | I102: =SUM(I9:I10) -> 0 | J102: =SUM(J9:J11) -> 14,484.50 | K102: =SUM(K9:K101) -> 0 | L102: =SUM(L9:L101) -> 1,280,606.80 | M102: =SUM(M9:M101) -> 4,897.00 | N102: =SUM(N9:N101) -> 27,240.00 | O102: =SUM(O9:O101) -> 521,229.76 | P102: =SUM(P9:P101) -> 1,403,671.08 | Q102: =SUM(Q63:Q101) -> 2,000,877.54 | R102: =SUM(R9:R101) -> 6,146,486.68
C103: GASTOS FIJOS
C104: EDEESTE | D104: SERVICIO DE ENERGIA ELECTRICA | R104: 6,170.09
C105: ESTACION DE COMBUSTIBLES | D105: COMBUSTIBLES | R105: 553,606.38
C106: AYUNTAMIENTO MUNICIPAL SPM | D106: SERVICIO DE ASEO | R106: 5,590.00
C107: ALQUILERES | D107: LOCAL DE LAS UNAP SRS ESTE | R107: 847,055.54
R108: =SUM(R104:R107) -> 1,412,422.01
B109: TOTAL GENERAL | R109: =R102+R108 -> $7,558,908.69
B111: Preparado Por: | C111: Revisado Por: | D111: Autorizado Por:
B114: Lic. Felicia Ubiera | C114: Lic. Crispin del Carmen R. | D114: Licda. Yudelky Jabalera
B115: Enc. De Cuentas por Cobrar | C115: Gerente Financiero | D115: Administradora
B351: TOTAL GENERAL | E351: =SUM(#REF!) ->  | F351: =SUM(#REF!) ->  | G351: =SUM(#REF!) ->  | H351: =SUM(#REF!) ->  | I351: =SUM(#REF!) ->  | J351: =SUM(#REF!) ->  | K351: =SUM(#REF!) ->  | L351: =SUM(#REF!) ->  | M351: =SUM(#REF!) ->  | N351: =SUM(#REF!) -> 
C352: GASTOS FIJOS
C353: EDEESTE | D353: SERVICIO DE ENERGIA ELECTRICA | N353: 6,170.09
C354: ESTACION DE COMBUSTIBLES | D354: COMBUSTIBLES | N354: 553,606.38
C355: AYUNTAMIENTO MUNICIPAL SPM | D355: SERVICIO DE ASEO | N355: 5,590.00
C356: ALQUILERES | D356: LOCAL DE LAS UNAP SRS ESTE | N356: 825,950.54
N357: =SUM(N353:N356) -> 1,391,317.01
B358: TOTAL GENERAL | N358: =N351+N357 -> 
B361: Preparado Por: | C361: Revisado Por: | D361: Autorizado Por:
B365: Lic. Felicia Ubiera | C365: Dr. Ricardo Julio Romero | D365: Licda. Yudelky Jabalera
B366: Enc. De Cuentas por Cobrar | C366: Director | D366: Administradora
